bitfinex-derivatives/quotes_SOLF0:USTF0_20241216
["timestamp","ask_amount","ask_price","bid_price","bid_amount"]
[1734342024691,6.28770402,220.15,220.08,6.28770402]
[1734342024915,6.28770402,220.15,220.05,2.14]
[1734342024916,8.42770402,220.17,220.1,6.28770402]
[1734342026393,8.42770402,220.17,220.11,2.2719]
[1734342026394,2.2716,220.15,220.11,2.2719]
[1734342026892,8.42770402,220.17,220.1,6.28770402]
[1734342026893,6.28770402,220.17,220.1,6.28770402]
[1734342027096,2.2714,220.17,220.12,6.28770402]
[1734342028493,2.2714,220.17,220.13,2.2718]
[1734342029292,2.2714,220.17,220.12,6.28770402]
[1734342029488,2.2714,220.17,220.12,8.55950402]
[1734342030295,6.28770402,220.18,220.12,6.28770402]
[1734342030495,6.28770402,220.16,220.1,6.28770402]
[1734342030990,2.2717,220.14,220.1,6.28770402]
[1734342031191,6.28770402,220.16,220.1,6.28770402]
[1734342031994,2.2719,220.12,220.08,6.28770402]
[1734342032495,2.272,220.11,220.08,6.28770402]
[1734342032990,2.2724,220.07,220.02,1.5025]
[1734342033197,6.28770402,220.1,220.02,7.79020402]
[1734342033589,2.2726,220.06,220.02,7.79020402]
[1734342033789,6.28770402,220.1,220.02,7.79020402]
[1734342034497,2.2725,220.07,220.03,2.2728]
[1734342034694,6.28770402,220.08,220.01,2.9679]
[1734342034891,6.28770402,220.08,220.01,7.75930402]
[1734342035596,2.2726,220.05,220.01,7.75930402]
[1734342036196,2.2726,220.05,220.01,10.03230402]
[1734342037098,2.2728,220.04,220.01,7.75930402]
[1734342039600,6.28770402,220.06,219.99,6.28770402]
[1734342040100,2.14,220.09,220.01,6.28770402]
[1734342040101,2.2728,220.04,220.01,6.28770402]
[1734342041698,2.273,220.03,220.01,6.28770402]
[1734342042097,2.273,220.03,219.99,4.4133]
[1734342042305,2.273,220.03,220.0,6.28770402]
[1734342044005,2.14,220.09,220.02,6.28770402]
[1734342044206,6.28770402,220.1,220.04,6.28770402]
[1734342045402,2.2725,220.08,220.04,8.56050402]
[1734342045710,2.2725,220.08,220.04,6.28770402]
[1734342046910,2.2725,220.08,220.04,8.56050402]
[1734342047909,50.00002596,220.18,220.06,6.28770402]
[1734342048209,6.28770402,220.14,220.08,6.28770402]
[1734342049405,2.2722,220.11,220.08,6.28770402]
[1734342050106,6.28770402,220.14,220.08,6.28770402]
[1734342050308,2.272,220.12,220.08,8.56010402]
[1734342051302,2.2721,220.11,220.08,6.28770402]
[1734342051708,6.28770402,220.14,220.08,6.28770402]
[1734342051908,2.272,220.12,220.08,6.28770402]
[1734342052614,2.2722,220.1,220.06,8.56030402]
[1734342052810,6.28770402,220.12,220.06,6.28770402]
[1734342053216,2.2724,220.09,220.06,6.28770402]
[1734342054516,2.2724,220.08,220.06,6.28770402]
[1734342056915,2.2724,220.08,220.04,4.4128]
[1734342057212,2.2724,220.08,220.02,6.28770402]
[1734342057213,6.28770402,220.08,220.02,6.28770402]
[1734342057408,6.28770402,220.08,220.03,5.03595834]
[1734342057614,6.28770402,220.08,220.02,6.28770402]
[1734342057813,2.2727,220.06,220.03,5.03595834]
[1734342058014,2.2727,220.06,220.02,6.28770402]
[1734342058216,2.2727,220.06,220.03,5.03722013]
[1734342058416,2.2727,220.06,220.02,6.28770402]
[1734342058624,2.2727,220.06,220.03,5.03727902]
[1734342058923,2.2727,220.06,220.02,6.28770402]
[1734342059124,2.2727,220.06,220.03,5.03727856]
[1734342059318,2.2727,220.06,220.02,6.28770402]
[1734342059517,2.2727,220.06,220.03,7.31014352]
[1734342059717,2.2727,220.06,220.03,2.2729]
[1734342060722,2.2729,220.04,220.01,2.2731]
[1734342060923,2.2729,220.04,220.01,8.56080402]
[1734342061122,6.28770402,220.08,220.01,6.28770402]
[1734342061523,2.2727,220.06,220.02,2.273]
[1734342061816,3.069,220.12,220.03,6.28770402]
[1734342062023,6.28770402,220.1,220.03,6.28770402]
[1734342063524,6.28770402,220.1,220.03,8.56060402]
[1734342065318,3.069,220.12,220.03,6.28770402]
[1734342065519,2.14,220.11,220.05,6.28770402]
[1734342066027,2.2723,220.09,220.05,8.56040402]
[1734342070328,6.28770402,220.12,220.03,10.70060402]
[1734342070731,6.28770402,220.12,220.04,5.0394218]
[1734342070926,6.28770402,220.12,220.03,8.42770402]
[1734342071229,6.28770402,220.12,220.04,5.03933286]
[1734342071427,6.28770402,220.12,220.03,8.42770402]
[1734342071623,2.2725,220.08,220.04,7.31277397]
[1734342071822,2.2725,220.08,220.04,2.2728]
[1734342072224,2.2725,220.08,220.05,5.0406293]
[1734342072425,2.2725,220.08,220.04,2.2728]
[1734342072629,2.2725,220.08,220.05,5.04062607]
[1734342072832,2.2725,220.08,220.04,2.2728]
[1734342073134,2.2725,220.08,220.05,5.04079795]
[1734342073333,2.2725,220.08,220.04,2.2728]
[1734342073531,2.2725,220.08,220.05,5.0419568]
[1734342073853,6.28770402,220.12,220.03,8.42770402]
[1734342074037,6.28770402,220.12,220.06,2.2726]
[1734342074038,2.2722,220.1,220.06,2.2726]
[1734342074232,6.28770402,220.12,220.06,2.2726]
[1734342075830,5.2053,220.17,220.11,6.28770402]
[1734342076031,3.6482,220.17,220.11,6.28770402]
[1734342076235,2.14,220.17,220.11,6.28770402]
[1734342076432,2.2718,220.14,220.11,6.28770402]
[1734342078033,2.2718,220.14,220.12,5.04168326]
[1734342078233,2.2718,220.14,220.11,6.28770402]
[1734342078432,52.27152596,220.18,220.13,8.55950402]
[1734342078632,2.2715,220.18,220.13,6.28770402]
[1734342078936,8.42770402,220.21,220.15,6.28770402]
[1734342079735,2.2714,220.19,220.15,6.28770402]
[1734342080235,8.42770402,220.21,220.15,6.28770402]
[1734342081234,2.2715,220.17,220.15,6.28770402]
[1734342081435,6.28770402,220.19,220.13,6.28770402]
[1734342081738,6.28770402,220.19,220.12,2.2719]
[1734342082237,2.2716,220.17,220.13,8.55960402]
[1734342082838,2.2716,220.17,220.13,6.28770402]
[1734342083337,8.42770402,220.21,220.13,6.28770402]
[1734342083533,8.42770402,220.21,220.15,6.28770402]
[1734342083737,3.0142,220.25,220.19,6.28770402]
[1734342083929,2.2709,220.23,220.19,6.28770402]
[1734342084738,2.271,220.22,220.15,1.5411]
[1734342084934,6.28770402,220.22,220.15,1.5411]
[1734342085140,6.28770402,220.2,220.14,6.28770402]
[1734342085339,2.2715,220.18,220.12,8.55960402]
[1734342085937,8.42770402,220.2,220.12,8.55960402]
[1734342086138,8.42770402,220.2,220.12,6.28770402]
[1734342088035,6.28770402,220.2,220.12,6.28770402]
[1734342088240,2.2715,220.17,220.12,8.55970402]
[1734342091639,2.2716,220.16,220.12,8.55970402]
[1734342093146,2.2716,220.16,220.12,6.28770402]
[1734342093546,6.28770402,220.16,220.1,2.14]
[1734342093859,6.28770402,220.16,220.1,6.28770402]
[1734342094241,2.2718,220.14,220.1,6.28770402]
[1734342094441,2.2718,220.14,220.1,8.55990402]
[1734342096639,2.2718,220.14,220.1,2.2722]
[1734342096840,6.28770402,220.15,220.08,8.56010402]
[1734342097041,6.28770402,220.15,220.08,6.28770402]
[1734342097241,3.0521,220.19,220.07,4.4124]
[1734342097242,2.2722,220.11,220.07,4.4124]
[1734342098848,2.2722,220.11,220.08,2.2724]
[1734342099543,2.2722,220.11,220.08,8.56010402]
[1734342102342,3.0521,220.19,220.1,6.28770402]
[1734342102650,2.14,220.18,220.12,6.28770402]
[1734342103151,6.28770402,220.22,220.14,6.28770402]
[1734342103351,2.14,220.23,220.16,6.28770402]
[1734342103553,6.28770402,220.23,220.16,6.28770402]
[1734342103868,6.28770402,220.21,220.16,2.2716]
[1734342104647,2.2713,220.19,220.15,2.2717]
[1734342104955,6.28770402,220.21,220.15,2.2717]
[1734342105152,2.2713,220.2,220.15,2.2717]
[1734342108551,2.2714,220.18,220.14,8.55950402]
[1734342109452,2.2713,220.19,220.15,2.2717]
[1734342110559,6.28770402,220.17,220.06,1.554]
[1734342110757,3.0043,220.25,220.07,12.45607951]
[1734342110758,6.28770402,220.15,220.07,12.45607951]
[1734342110957,6.28770402,220.13,220.08,6.16837549]
[1734342111251,2.2723,220.1,220.06,10.11430402]
[1734342111454,2.2723,220.1,220.07,5.03265979]
[1734342111659,2.2721,220.11,220.07,2.2725]
[1734342112048,2.2722,220.1,220.07,2.2725]
[1734342113052,4.5416,220.24,220.09,2.2723]
[1734342113258,2.14,220.23,220.1,6.28770402]
[1734342113458,6.28770402,220.17,220.1,6.28770402]
[1734342113654,2.2718,220.15,220.1,8.55980402]
[1734342113957,2.2718,220.15,220.1,6.28770402]
[1734342115553,2.2718,220.15,220.11,2.2721]
[1734342119363,2.2718,220.14,220.1,8.55990402]
[1734342119558,2.2718,220.14,220.11,5.04172471]
[1734342119860,2.2718,220.14,220.1,2.2722]
[1734342120062,2.2718,220.14,220.11,5.04179392]
[1734342120258,6.28770402,220.15,220.09,8.56000402]
[1734342120259,2.272,220.12,220.09,8.56000402]
[1734342120455,6.28770402,220.13,220.1,5.04360292]
[1734342120659,6.28770402,220.13,220.05,8.42770402]
[1734342120861,6.28770402,220.13,220.07,8.56020402]
[1734342121061,6.28770402,220.13,220.08,6.18048043]
[1734342121364,2.14,220.18,220.06,6.28770402]
[1734342121365,2.2723,220.09,220.06,6.28770402]
[1734342121560,2.2723,220.09,220.07,6.18084098]
[1734342121866,2.2723,220.09,220.08,5.04383563]
[1734342122359,6.28770402,220.09,220.04,2.2728]
[1734342122563,2.2724,220.08,220.05,6.17993756]
[1734342122759,2.2724,220.08,220.06,5.0428736]
[1734342122962,2.2724,220.08,220.07,5.04265845]
[1734342123471,2.14,220.08,219.95,1.5677]
[1734342123661,6.28770402,220.02,219.96,1.13743777]
[1734342123856,6.28770402,220.02,219.97,1.13741264]
[1734342124059,6.28770402,220.02,219.95,10.12910402]
[1734342124264,6.28770402,220.0,219.96,1.13741281]
[1734342124460,6.28770402,220.0,219.93,7.78930402]
[1734342124660,6.28770402,220.0,219.94,1.13749026]
[1734342124863,6.28770402,220.0,219.95,1.13749026]
[1734342125162,2.14,220.02,219.95,6.28770402]
[1734342125366,6.28770402,220.05,219.97,6.28770402]
[1734342126164,6.28770402,220.05,219.98,2.2734]
[1734342126485,6.28770402,220.03,219.97,6.28770402]
[1734342126867,6.28770402,220.03,219.93,2.9898]
[1734342127058,2.2731,220.02,219.96,8.56130402]
[1734342127461,2.2731,220.02,219.96,6.28770402]
[1734342128459,2.2731,220.02,219.97,2.2735]
[1734342130667,2.2732,220.01,219.97,2.2735]
[1734342132780,2.2732,220.01,219.98,6.28770402]
[1734342137470,2.2732,220.01,219.97,2.2735]
[1734342137672,6.28770402,220.02,219.95,2.2737]
[1734342138474,6.28770402,220.02,219.96,8.56130402]
[1734342138672,2.2733,220.0,219.96,8.56130402]
[1734342139268,2.2733,220.0,219.97,2.2735]
[1734342140873,2.2734,219.99,219.96,2.2736]
[1734342141074,2.2734,219.99,219.95,6.28770402]
[1734342141472,2.2734,219.99,219.96,2.2737]
[1734342143867,6.28770402,220.0,219.94,2.2738]
[1734342144575,2.2735,219.98,219.94,2.2738]
[1734342144974,2.2735,219.98,219.95,2.2738]
[1734342146377,2.2735,219.98,219.94,2.2738]
[1734342146570,2.2738,219.95,219.89,2.12]
[1734342146878,2.2738,219.95,219.91,6.28770402]
[1734342147580,2.2738,219.95,219.92,2.274]
[1734342147776,2.2738,219.95,219.92,8.56170402]
[1734342149282,2.2738,219.95,219.92,2.274]
[1734342152478,2.274,219.93,219.9,2.2742]
[1734342152679,6.28770402,219.94,219.77,56.5312]
[1734342152876,6.28770402,219.94,219.87,6.47696402]
[1734342153085,2.2741,219.92,219.88,2.2744]
[1734342153679,2.274,219.94,219.87,0.18926]
[1734342153882,2.274,219.94,219.89,6.28770402]
[1734342154682,2.2742,219.91,219.87,0.18926]
[1734342154879,2.2742,219.91,219.87,6.47696402]
[1734342155180,2.2743,219.9,219.87,2.46386]
[1734342155381,6.28770402,219.94,219.87,8.75156402]
[1734342156185,6.28770402,219.94,219.87,8.56230402]
[1734342156592,2.2742,219.91,219.88,2.2745]
[1734342156781,2.12,219.96,219.89,6.28770402]
[1734342156980,6.28770402,219.97,219.89,6.28770402]
[1734342157184,2.2739,219.95,219.91,2.2741]
[1734342157584,6.28770402,219.97,219.91,2.2741]
[1734342159483,2.2738,219.95,219.91,2.2741]
[1734342163182,2.2738,219.95,219.91,8.56180402]
[1734342164690,2.2739,219.94,219.91,8.56180402]
[1734342165688,2.12,219.98,219.85,2.12]
[1734342165990,6.28770402,219.95,219.87,6.28770402]
[1734342166193,6.28770402,219.95,219.88,6.10949786]
[1734342166394,6.28770402,219.95,219.89,4.97237444]
[1734342166696,6.28770402,219.95,219.89,6.28770402]
[1734342167392,2.12,219.98,219.91,6.28770402]
[1734342167593,8.40770402,219.98,219.91,6.28770402]
[1734342168393,2.2739,219.94,219.91,8.56180402]
[1734342170194,2.2739,219.94,219.85,2.12]
[1734342170195,2.2737,219.97,219.93,6.28770402]
[1734342170791,2.2737,219.96,219.91,6.28770402]
[1734342170995,2.12,219.98,219.91,6.28770402]
[1734342171892,2.2738,219.95,219.86,1.4326]
[1734342172093,6.28770402,219.97,219.89,6.28770402]
[1734342172491,6.28770402,219.95,219.89,6.28770402]
[1734342173011,2.2741,219.92,219.89,8.56200402]
[1734342173893,2.2739,219.94,219.89,6.28770402]
[1734342174094,2.2739,219.94,219.9,2.2743]
[1734342174698,6.28770402,219.96,219.9,2.2743]
[1734342175095,2.2738,219.95,219.91,8.56180402]
[1734342175292,2.12,219.98,219.91,6.28770402]
[1734342176297,2.2736,219.97,219.93,2.2739]
[1734342177590,2.2737,219.96,219.92,2.2741]
[1734342177790,2.12,219.98,219.91,6.28770402]
[1734342178098,6.28770402,219.97,219.91,6.28770402]
[1734342179401,2.2739,219.94,219.91,8.56180402]
[1734342179602,6.28770402,219.97,219.89,6.28770402]
[1734342180202,2.2739,219.94,219.9,7.25024926]
[1734342180398,2.2739,219.94,219.9,2.2742]
[1734342181293,8.40770402,219.97,219.9,2.2742]
[1734342181497,2.2741,219.92,219.89,8.56210402]
[1734342181692,2.2741,219.92,219.9,4.97657138]
[1734342181894,2.2741,219.92,219.89,8.56210402]
[1734342182105,1.4559,220.0,219.91,6.28770402]
[1734342182302,8.40770402,220.0,219.93,6.28770402]
[1734342183199,2.2735,219.98,219.93,6.28770402]
[1734342183395,2.2735,219.98,219.95,6.28770402]
[1734342184402,2.2735,219.98,219.95,8.56150402]
[1734342184600,2.273,220.03,219.97,6.28770402]
[1734342184801,6.28770402,220.08,220.02,6.28770402]
[1734342185008,8.40770402,220.08,220.02,6.28770402]
[1734342185337,2.2727,220.05,220.02,6.28770402]
[1734342186002,2.2727,220.05,220.0,8.56090402]
[1734342186197,2.2727,220.05,220.01,4.97699703]
[1734342186400,2.2727,220.05,220.0,8.56090402]
[1734342186701,2.2729,220.04,220.01,4.97592929]
[1734342186897,6.28770402,220.04,219.97,2.12]
[1734342187098,6.28770402,220.04,219.96,6.28770402]
[1734342187300,2.2731,220.02,219.97,1.13748988]
[1734342187501,2.2731,220.02,219.96,6.28770402]
[1734342187698,6.28770402,220.04,219.95,2.12]
[1734342187902,6.28770402,220.0,219.93,5.2203]
[1734342188206,6.28770402,220.0,219.93,11.50800402]
[1734342189406,2.2735,219.98,219.94,2.2738]
[1734342191308,2.2735,219.98,219.93,3.8618]
[1734342192017,2.2736,219.97,219.93,3.8618]
[1734342192409,2.2736,219.97,219.94,6.28770402]
[1734342192605,2.2734,219.99,219.94,8.56150402]
[1734342192809,6.28770402,220.02,219.94,6.28770402]
[1734342193209,2.2733,220.0,219.96,2.2736]
[1734342194112,2.2732,220.01,219.97,2.2735]
[1734342194513,6.28770402,220.02,219.96,6.28770402]
[1734342194817,6.28770402,220.04,219.97,1.137473]
[1734342195113,6.28770402,220.04,219.98,4.97773326]
[1734342195321,6.28770402,220.04,219.96,6.28770402]
[1734342195512,2.2731,220.02,219.98,2.2734]
[1734342196817,2.2731,220.02,219.98,8.56110402]
[1734342199525,2.2731,220.02,219.98,6.28770402]
[1734342199712,8.40770402,220.06,219.98,6.28770402]
[1734342200212,8.40770402,220.06,220.0,6.28770402]
[1734342200419,6.28770402,220.06,220.0,6.28770402]
[1734342200922,2.2727,220.05,220.01,2.2731]
[1734342201120,6.28770402,220.08,220.0,6.28770402]
[1734342202323,2.2726,220.06,220.02,8.56070402]
[1734342202512,2.2726,220.06,220.02,6.28770402]
[1734342203415,2.2726,220.06,220.02,8.56070402]
[1734342203620,2.12,220.1,220.0,6.28770402]
[1734342203621,2.2727,220.05,220.0,6.28770402]
[1734342204523,2.2727,220.05,220.01,2.2731]
[1734342210816,6.28770402,220.07,220.0,8.56090402]
[1734342211021,6.28770402,220.07,219.99,6.28770402]
[1734342211523,2.273,220.03,219.99,8.56100402]
[1734342212321,2.273,220.03,219.99,6.28770402]
[1734342212522,2.2726,220.06,220.01,6.28770402]
[1734342213226,2.2726,220.06,220.02,2.2729]
[1734342213623,0.6658,220.14,219.97,2.12]
[1734342213624,38.09087836,220.2,220.05,6.28770402]
[1734342213819,1.4876,220.13,220.07,6.28770402]
[1734342214025,3.6076,220.13,220.07,6.28770402]
[1734342214427,2.2722,220.11,220.07,2.2725]
[1734342214725,2.12,220.15,220.09,6.28770402]
[1734342214925,1.5061,220.18,220.09,6.28770402]
[1734342214926,4.3916,220.16,220.11,2.272]
[1734342215127,2.12,220.16,220.11,2.272]
[1734342215428,2.12,220.16,220.11,8.55970402]
[1734342215721,2.2717,220.15,220.11,8.55970402]
[1734342216519,2.2717,220.15,220.11,6.28770402]
[1734342221426,2.2717,220.15,220.11,8.55980402]
[1734342226932,6.28770402,220.17,220.11,8.55980402]
[1734342227227,6.28770402,220.13,220.07,6.28770402]
[1734342227628,7.02942642,220.18,220.08,2.2724]
[1734342227831,6.28770402,220.14,220.08,2.2724]
[1734342228433,2.272,220.13,220.08,2.2724]
[1734342229026,2.272,220.12,220.08,2.2724]
[1734342230436,2.2721,220.11,220.08,2.2724]
[1734342230930,6.28770402,220.14,220.05,2.12]
[1734342231133,2.2723,220.1,220.05,8.40770402]
[1734342232134,2.2723,220.1,220.06,2.2725]
[1734342232432,2.2723,220.1,220.07,6.28770402]
[1734342233127,2.2723,220.1,220.07,8.56020402]
[1734342234030,2.2723,220.09,220.07,6.28770402]
[1734342235031,2.2723,220.09,220.05,8.56030402]
[1734342241737,2.2722,220.11,220.07,6.28770402]
[1734342242143,2.2722,220.1,220.07,8.56020402]
[1734342242337,7.02942642,220.18,220.09,6.28770402]
[1734342242537,2.12,220.17,220.11,6.28770402]
[1734342242733,2.2716,220.16,220.11,8.55980402]
[1734342242936,15.43713044,220.18,220.11,8.55980402]
[1734342243833,2.2718,220.14,220.11,8.55980402]
[1734342245237,2.2718,220.15,220.11,8.55980402]
[1734342247935,15.43713044,220.18,220.11,8.55980402]
[1734342248136,2.2718,220.14,220.11,8.55980402]
[1734342248846,2.2718,220.14,220.11,6.28770402]
[1734342260054,2.2719,220.13,220.11,6.28770402]
[1734342265854,2.2721,220.11,220.1,6.28770402]
[1734342266055,6.28770402,220.14,220.06,2.12]
[1734342266256,6.28770402,220.14,220.08,6.28770402]
[1734342266561,2.2722,220.1,220.08,6.28770402]
[1734342271865,2.2718,220.13,220.08,6.28770402]
[1734342272064,6.28770402,220.14,220.08,6.28770402]
[1734342273363,6.28770402,220.14,220.06,4.3925]
[1734342273364,6.28770402,220.14,220.06,2.12]
[1734342273563,2.2721,220.1,220.08,6.28770402]
[1734342275264,2.2718,220.13,220.08,6.28770402]
[1734342275466,7.02942642,220.18,220.12,6.28770402]
[1734342275768,2.12,220.17,220.12,6.28770402]
[1734342277270,2.2717,220.14,220.12,6.28770402]
[1734342280372,15.43713044,220.18,220.12,6.28770402]
[1734342280668,2.2718,220.13,220.1,8.55980402]
[1734342281569,2.2718,220.13,220.1,6.28770402]
[1734342281764,6.28770402,220.14,220.04,3.0434]
[1734342281968,6.28770402,220.12,220.06,6.28770402]
[1734342282168,6.28770402,220.1,220.06,6.28770402]
[1734342282372,2.2724,220.07,220.06,6.28770402]
[1734342287972,2.2724,220.07,220.02,2.12]
[1734342287973,2.2726,220.06,220.02,4.3929]
[1734342288172,2.2726,220.06,220.04,6.28770402]
[1734342289972,6.28770402,220.1,220.04,6.28770402]
[1734342290178,6.28770402,220.12,220.06,6.28770402]
[1734342290781,2.2722,220.09,220.06,6.28770402]
[1734342290971,1.5131,220.17,220.07,2.2724]
[1734342291176,6.28770402,220.13,220.07,8.56010402]
[1734342291679,8.40770402,220.13,220.07,8.56010402]
[1734342291872,2.2721,220.11,220.07,8.56010402]
[1734342292682,2.12,220.15,220.08,2.2723]
[1734342292872,6.28770402,220.14,220.09,6.28770402]
[1734342293271,2.2718,220.13,220.09,6.28770402]
[1734342293477,6.28770402,220.14,220.07,6.28770402]
[1734342294608,2.2721,220.1,220.07,6.28770402]
[1734342297578,2.2721,220.1,220.06,2.2725]
[1734342297778,2.2721,220.1,220.07,6.28770402]
[1734342300782,6.28770402,220.12,220.05,6.28770402]
[1734342300978,6.28770402,220.12,220.03,1.583]
[1734342301282,6.28770402,220.08,220.02,6.28770402]
[1734342301581,6.28770402,220.08,220.03,4.97919455]
[1734342301777,6.28770402,220.08,220.03,6.28770402]
[1734342302686,2.2727,220.05,220.03,6.28770402]
[1734342304185,8.40770402,220.08,219.98,1.5314]
[1734342304481,6.28770402,220.06,220.0,12.40257143]
[1734342304682,6.28770402,220.06,220.0,6.28770402]
[1734342305484,2.273,220.01,219.98,6.28770402]
[1734342305685,6.28770402,220.04,219.99,4.9759569]
[1734342305882,6.28770402,220.04,219.98,6.28770402]
[1734342306987,6.28770402,220.06,220.0,6.28770402]
[1734342307377,2.12,220.07,220.02,6.28770402]
[1734342307582,8.40770402,220.08,220.02,6.28770402]
[1734342307783,2.2726,220.05,220.02,6.28770402]
[1734342309993,2.12,220.08,220.02,6.28770402]
[1734342310194,6.28770402,220.09,220.04,6.28770402]
[1734342310391,2.12,220.1,220.04,6.28770402]
[1734342310693,2.2723,220.09,220.04,2.2727]
[1734342310889,2.12,220.1,220.04,8.56040402]
[1734342311791,2.2724,220.07,220.04,6.28770402]
[1734342311988,2.12,220.1,220.02,6.28770402]
[1734342311989,6.28770402,220.09,220.02,6.28770402]
[1734342312493,2.2727,220.05,220.02,6.28770402]
[1734342313291,6.28770402,220.07,220.01,6.28770402]
[1734342313497,2.2729,220.02,220.01,6.28770402]
[1734342313789,6.28770402,220.05,219.99,7.72620402]
[1734342314385,2.2728,220.03,219.99,7.72620402]
[1734342315392,2.2728,220.03,220.0,6.28770402]
[1734342318797,2.2729,220.02,220.0,6.28770402]
[1734342319596,2.2731,220.0,219.96,2.2735]
[1734342319795,2.2731,220.0,219.96,8.56120402]
[1734342324402,2.2732,220.0,219.96,2.2735]
[1734342324700,2.2732,220.0,219.97,6.28770402]
[1734342328900,2.2732,219.99,219.97,6.28770402]
[1734342329601,2.2735,219.97,219.93,3.7162]
[1734342329801,6.28770402,220.0,219.94,6.28770402]
[1734342331505,2.2735,219.97,219.94,6.28770402]
[1734342333006,2.2733,219.98,219.93,7.73010402]
[1734342333210,6.28770402,220.0,219.93,7.73010402]
[1734342333709,2.2737,219.95,219.93,7.73010402]
[1734342333928,2.2737,219.95,219.91,3.7419]
[1734342334101,2.2735,219.96,219.91,7.75570402]
[1734342334306,8.40770402,219.98,219.91,7.75570402]
[1734342335403,2.2736,219.96,219.93,6.28770402]
[1734342335608,8.40770402,219.98,219.72,2.12]
[1734342335609,6.28770402,219.95,219.72,2.12]
[1734342335806,6.28770402,219.83,219.76,5.42678264]
[1734342336010,2.275,219.82,219.77,9.40345872]
[1734342336208,8.40770402,219.83,219.78,9.40345872]
[1734342336512,6.28770402,219.81,219.79,4.9657752]
[1734342336827,4.3949,219.83,219.77,2.2754]
[1734342337009,2.2749,219.83,219.78,4.96247744]
[1734342337214,6.28770402,219.84,219.74,3.0111]
[1734342337215,8.40770402,219.82,219.79,4.96247744]
[1734342337406,10.68280402,219.82,219.76,2.2756]
[1734342338113,10.68280402,219.82,219.77,2.2755]
[1734342338312,8.40770402,219.82,219.75,6.28770402]
[1734342338508,2.2751,219.81,219.76,2.2756]
[1734342339013,2.2751,219.81,219.75,6.28770402]
[1734342341211,2.2751,219.81,219.76,2.2756]
[1734342341411,6.28770402,219.8,219.74,1.4491]
[1734342341613,6.28770402,219.78,219.61,3.28739807]
[1734342341821,6.28770402,219.76,219.62,12.99425745]
[1734342342010,2.2758,219.74,219.69,8.56390402]
[1734342342210,2.12,219.75,219.69,6.28770402]
[1734342342414,6.28770402,219.74,219.67,0.49989]
[1734342342617,6.28770402,219.74,219.67,6.78759402]
[1734342343621,2.276,219.72,219.67,9.06409402]
[1734342343816,2.12,219.73,219.67,0.49989]
[1734342344017,2.2761,219.71,219.67,0.49989]
[1734342345122,2.12,219.73,219.67,0.49989]
[1734342345518,6.28770402,219.71,219.67,0.49989]
[1734342346021,6.28770402,219.69,219.67,0.49989]
[1734342346222,2.12,219.68,219.57,6.28770402]
[1734342346522,6.28770402,219.63,219.57,6.28770402]
[1734342346741,6.28770402,219.61,219.55,6.28770402]
[1734342346922,2.2774,219.59,219.55,6.28770402]
[1734342347317,2.2774,219.59,219.54,2.2778]
[1734342347520,2.2774,219.59,219.54,8.56550402]
[1734342347827,2.2771,219.61,219.56,6.28770402]
[1734342348122,8.46119302,219.72,219.58,6.28770402]
[1734342348326,6.28770402,219.65,219.58,6.28770402]
[1734342348526,2.12,219.64,219.58,6.28770402]
[1734342348723,4.3969,219.63,219.58,6.28770402]
[1734342349023,6.28770402,219.66,219.59,2.2773]
[1734342349318,2.12,219.65,219.6,6.28770402]
[1734342349522,2.12,219.66,219.54,3.584]
[1734342349724,6.28770402,219.65,219.58,6.28770402]
[1734342350320,2.2769,219.63,219.58,8.56510402]
[1734342350819,2.2771,219.62,219.58,6.28770402]
[1734342351020,6.28770402,219.63,219.58,6.28770402]
[1734342351225,6.28770402,219.63,219.56,6.28770402]
[1734342351422,2.2772,219.61,219.56,8.56530402]
[1734342351729,2.12,219.61,219.56,8.56530402]
[1734342352421,2.12,219.61,219.57,2.2775]
[1734342352622,2.12,219.61,219.56,6.28770402]
[1734342353527,2.12,219.61,219.56,8.56530402]
[1734342354619,2.277,219.62,219.56,8.56530402]
[1734342354620,2.12,219.62,219.56,8.56530402]
[1734342354815,6.28770402,219.61,219.54,3.7418]
[1734342355020,6.28770402,219.61,219.54,10.02950402]
[1734342355919,6.28770402,219.61,219.54,3.7418]
[1734342356126,2.2774,219.58,219.54,10.02950402]
[1734342356424,2.2774,219.58,219.54,7.75170402]
[1734342358626,6.28770402,219.61,219.54,7.75170402]
[1734342358824,2.2773,219.59,219.55,2.2777]